fUST/lending_fUST_20250224
["ID","MTS","AMOUNT","RATE_DAILY","PERIOD"]
[354170350,1740326947094,-883.24840893,9.566e-05,2]
[354170351,1740326947114,-358.50296385,9.663e-05,2]
[354170409,1740327032596,-2300.63784516,9.566e-05,2]
[354170412,1740327032609,-2699.36215484,9.566e-05,2]
[354170413,1740327032619,-813.6343845,9.96e-05,2]
[354170415,1740327032628,-300.0,0.0001092,2]
[354170417,1740327032638,-13279.54588923,0.00010921,2]
[354170419,1740327032647,-151.0,0.00010952,2]
[354170421,1740327032657,-151.0,0.00010959,2]
[354170423,1740327032670,-151.0,0.00010959,2]
[354170426,1740327032680,-151.0,0.00010959,2]
[354170427,1740327032690,-151.0,0.00010959,2]
[354170429,1740327032700,-151.0,0.00010959,2]
[354170431,1740327032710,-151.0,0.00010959,2]
[354170432,1740327032720,-151.0,0.00010959,2]
[354170433,1740327032729,-273.508802,0.00010959,2]
[354170435,1740327032740,-182.652981,0.00010959,2]
[354170437,1740327032751,-182.652981,0.00010959,2]
[354170439,1740327032760,-182.652981,0.00010959,2]
[354170441,1740327032770,-182.652981,0.00010959,2]
[354170443,1740327032779,-182.652981,0.00010959,2]
[354170444,1740327032788,-182.652981,0.00010959,2]
[354170446,1740327032798,-151.0,0.00010959,2]
[354170448,1740327032807,-151.0,0.00010959,2]
[354170450,1740327032816,-151.0,0.00010959,2]
[354170451,1740327032826,-151.0,0.00010959,2]
[354170453,1740327032836,-19637.8967016,0.00010959,2]
[354170455,1740327032846,-500.0,0.00010959,2]
[354170458,1740327032856,-151.0,0.00010959,2]
[354170460,1740327032865,-151.0,0.00010959,2]
[354170461,1740327032875,-151.0,0.00010959,2]
[354170462,1740327032884,-277.105235,0.00010959,2]
[354170463,1740327032894,-151.0,0.00010959,2]
[354170465,1740327032903,-182.652981,0.00010959,2]
[354170466,1740327032912,-182.652981,0.00010959,2]
[354170468,1740327032921,-182.652981,0.00010959,2]
[354170470,1740327032931,-182.652981,0.00010959,2]
[354170472,1740327032942,-182.652981,0.00010959,2]
[354170474,1740327032951,-182.652981,0.00010959,2]
[354170475,1740327032961,-151.0,0.00010959,2]
[354170476,1740327032971,-151.0,0.00010959,2]
[354170477,1740327032980,-151.0,0.00010959,2]
[354170478,1740327032990,-151.0,0.00010969,2]
[354170479,1740327032999,-151.0,0.00011002,2]
[354170480,1740327033008,-182.652981,0.00011041,2]
[354170481,1740327033017,-182.652981,0.00011041,2]
[354170482,1740327033027,-13279.54588923,0.00011181,2]
[354170483,1740327033037,-151.0,0.00011221,2]
[354170484,1740327033047,-313.767714,0.00011261,2]
[354170485,1740327033058,-313.767714,0.00011261,2]
[354170486,1740327033068,-151.0,0.00011261,2]
[354170487,1740327033077,-151.0,0.00011261,2]
[354170488,1740327033086,-151.0,0.00011261,2]
[354170489,1740327033096,-151.0,0.00011261,2]
[354170490,1740327033105,-151.0,0.00011261,2]
[354170491,1740327033114,-151.0,0.00011274,2]
[354170492,1740327033124,-151.0,0.00011274,2]
[354170493,1740327033134,-185.742524,0.00011274,2]
[354170494,1740327033143,-185.742524,0.00011274,2]
[354170495,1740327033153,-165.800975,0.00011274,2]
[354170496,1740327033163,-165.800975,0.00011274,2]
[354170497,1740327033172,-194.979244,0.00011274,2]
[354170498,1740327033182,-194.979244,0.00011274,2]
[354170499,1740327033193,-9891.40353151,0.00011293,2]
[354170500,1740327033206,-3388.14235772,0.00011293,2]
[354170501,1740327033216,-151.0,0.00011294,2]
[354170502,1740327033225,-151.0,0.00011294,2]
[354170503,1740327033234,-460.510294,0.00011299,2]
[354170504,1740327033243,-524.157355,0.00011299,2]
[354170505,1740327033252,-524.157355,0.00011299,2]
[354170506,1740327033262,-218.183882,0.00011299,2]
[354170507,1740327033272,-218.183882,0.00011299,2]
[354170508,1740327033282,-248.954067,0.00011414,2]
[354170509,1740327033291,-248.954067,0.00011414,2]
[354170510,1740327033301,-151.0,0.00011414,2]
[354170511,1740327033311,-151.0,0.00011472,2]
[354170512,1740327033321,-1649.859882,0.00011522,2]
[354170513,1740327033331,-1631.15759885,0.00011522,2]
[354170514,1740327033351,-18.70228315,0.00011522,2]
[354170515,1740327033361,-151.0,0.00011522,2]
[354170516,1740327033370,-151.0,0.00011522,2]
[354170517,1740327033380,-151.0,0.00011522,2]
[354170518,1740327033389,-151.0,0.00011522,2]
[354170519,1740327033399,-166.412523,0.00011522,2]
[354170520,1740327033409,-166.412523,0.00011522,2]
[354170521,1740327033419,-151.0,0.00011522,2]
[354170522,1740327033428,-151.0,0.00011522,2]
[354170523,1740327033438,-155.32360797,0.00011878,2]
[354170524,1740327033448,-420.0,0.00012001,2]
[354170525,1740327033458,-621.4645933,0.00012849,2]
[354170526,1740327033468,-158.46827375,0.000129,2]
[354170527,1740327033477,-587.0,0.00013189,2]
[354170528,1740327033487,-182.652981,0.00013272,2]
[354170529,1740327033497,-182.652981,0.00013272,2]
[354170530,1740327033506,-396.0,0.00013406,2]
[354170531,1740327033515,-151.0,0.0001351,2]
[354170532,1740327033525,-355.163177,0.00013534,2]
[354170533,1740327033534,-186.80876159,0.00013597,2]
[354170534,1740327033543,-3000.0,0.00013598,2]
[354170535,1740327033553,-151.0,0.00013599,2]
[354170536,1740327033562,-163.4030903,0.00013666,2]
[354170537,1740327033571,-500.0,0.00013673,2]
[354170538,1740327033580,-237.90476766,0.00013673,2]
[354170539,1740327033590,-500.0,0.00013673,2]
[354170540,1740327033598,-500.0,0.00013673,2]
[354170541,1740327033607,-500.0,0.00013673,2]
[354170542,1740327033616,-500.0,0.00013673,2]
[354170543,1740327033625,-500.88910816,0.00013673,2]
[354170544,1740327033634,-530.30132037,0.00013673,2]
[354170545,1740327033643,-151.0,0.00013695,2]
[354170546,1740327033653,-460.510294,0.00013696,2]
[354170547,1740327033662,-460.510294,0.00013696,2]
[354170548,1740327033674,-524.157355,0.00013696,2]
[354170549,1740327033683,-524.157355,0.00013696,2]
[354170550,1740327033692,-524.157355,0.00013696,2]
[354170551,1740327033701,-524.157355,0.00013696,2]
[354170552,1740327033711,-248.954067,0.00013696,2]
[354170553,1740327033816,-248.954067,0.00013696,2]
[354170554,1740327033826,-248.954067,0.00013696,2]
[354170555,1740327033837,-248.954067,0.00013696,2]
[354170556,1740327033847,-218.183882,0.00013696,2]
[354170557,1740327033857,-218.183882,0.00013696,2]
[354170558,1740327033866,-218.183882,0.00013696,2]
[354170559,1740327033875,-218.183882,0.00013696,2]
[354170560,1740327033885,-1649.859882,0.00013696,2]
[354170561,1740327033895,-1649.859882,0.00013696,2]
[354170562,1740327033904,-151.0,0.00013696,2]
[354170563,1740327033914,-151.0,0.00013696,2]
[354170564,1740327033924,-1649.859882,0.00013696,2]
[354170565,1740327033933,-1649.859882,0.00013696,2]
[354170566,1740327033942,-151.0,0.00013696,2]
[354170567,1740327033952,-151.0,0.00013696,2]
[354170568,1740327033961,-151.0,0.00013696,2]
[354170569,1740327033970,-242.505429,0.00013696,2]
[354170570,1740327033979,-151.0,0.00013696,2]
[354170571,1740327033989,-151.170621,0.00013696,2]
[354170572,1740327033998,-151.0,0.00013696,2]
[354170573,1740327034007,-151.0,0.00013696,2]
[354170574,1740327034017,-166.412523,0.00013696,2]
[354170575,1740327034026,-166.412523,0.00013696,2]
[354170576,1740327034035,-166.412523,0.00013696,2]
[354170577,1740327034044,-166.412523,0.00013696,2]
[354170578,1740327034054,-151.0,0.00013696,2]
[354170579,1740327034066,-151.0,0.00013696,2]
[354170580,1740327034076,-151.0,0.00013696,2]
[354170581,1740327034086,-165.871706,0.00013696,2]
[354170582,1740327034095,-500.0,0.00013696,2]
[354170583,1740327034104,-500.0,0.00013696,2]
[354170584,1740327034114,-500.0,0.00013696,2]
[354170585,1740327034124,-500.0,0.00013696,2]
[354170586,1740327034133,-500.0,0.00013696,2]
[354170587,1740327034143,-612.56787677,0.00013696,2]
[354170588,1740327034153,-500.0,0.00013696,2]
[354170589,1740327034163,-500.0,0.00013696,2]
[354170590,1740327034172,-500.0,0.00013696,2]
[354170591,1740327034182,-500.0,0.00013696,2]
[354170592,1740327034192,-500.0,0.00013696,2]
[354170593,1740327034202,-500.0,0.00013696,2]
[354170594,1740327034212,-500.0,0.00013696,2]
[354170595,1740327034221,-500.0,0.00013696,2]
[354170596,1740327034231,-500.0,0.00013696,2]
[354170597,1740327034240,-500.0,0.00013696,2]
[354170598,1740327034249,-500.0,0.00013696,2]
[354170599,1740327034258,-500.0,0.00013696,2]
[354170600,1740327034268,-500.0,0.00013696,2]
[354170601,1740327034277,-500.0,0.00013696,2]
[354170602,1740327034286,-500.0,0.00013696,2]
[354170603,1740327034295,-500.0,0.00013696,2]
[354170604,1740327034304,-306.83735577,0.00013696,2]
[354170605,1740327034314,-500.0,0.00013696,2]
[354170606,1740327034323,-500.0,0.00013696,2]
[354170607,1740327034332,-500.0,0.00013696,2]
[354170608,1740327034342,-500.0,0.00013696,2]
[354170609,1740327034351,-500.0,0.00013696,2]
[354170610,1740327034361,-500.0,0.00013696,2]
[354170611,1740327034370,-500.0,0.00013696,2]
[354170612,1740327034380,-500.0,0.00013696,2]
[354170613,1740327034390,-554.57285229,0.00013696,2]
[354170614,1740327034399,-500.0,0.00013696,2]
[354170615,1740327034409,-500.0,0.00013696,2]
[354170616,1740327034418,-500.0,0.00013696,2]
[354170617,1740327034427,-500.0,0.00013696,2]
[354170618,1740327034437,-500.0,0.00013696,2]
[354170619,1740327034447,-500.0,0.00013696,2]
[354170620,1740327034456,-325.0,0.00013696,2]
[354170621,1740327034466,-500.0,0.00013696,2]
[354170622,1740327034476,-500.0,0.00013696,2]
[354170623,1740327034486,-380.35739516,0.00013696,2]
[354170624,1740327034495,-500.0,0.00013696,2]
[354170625,1740327034505,-500.0,0.00013696,2]
[354170626,1740327034514,-500.0,0.00013696,2]
[354170627,1740327034524,-500.0,0.00013696,2]
[354170628,1740327034534,-500.0,0.00013696,2]
[354170629,1740327034543,-500.0,0.00013696,2]
[354170630,1740327034553,-500.0,0.00013696,2]
[354170631,1740327034562,-313.767714,0.00013697,2]
[354170632,1740327034571,-279.3096508,0.00013697,2]
[354170647,1740327038241,-2613.54,0.00010959,2]
[354170649,1740327038250,-5000.0,0.00013559,2]
[354170650,1740327038260,-34.4580632,0.00013697,2]
[354170651,1740327038270,-151.0,0.00013697,2]
[354170652,1740327038281,-151.0,0.00013697,2]
[354170653,1740327038290,-151.0,0.00013697,2]
[354170654,1740327038300,-151.0,0.00013697,2]
[354170655,1740327038310,-151.0,0.00013697,2]
[354170656,1740327038319,-208.287372,0.00013697,2]
[354170657,1740327038328,-151.0,0.00013697,2]
[354170658,1740327038338,-151.0,0.00013697,2]
[354170659,1740327038347,-151.0,0.00013697,2]
[354170660,1740327038356,-151.0,0.00013697,2]
[354170661,1740327038365,-176.849979,0.00013697,2]
[354170662,1740327038374,-185.742524,0.00013697,2]
[354170663,1740327038383,-185.742524,0.00013697,2]
[354170664,1740327038393,-185.742524,0.00013697,2]
[354170665,1740327038403,-185.742524,0.00013697,2]
[354170666,1740327038413,-165.800975,0.00013697,2]
[354170667,1740327038423,-165.800975,0.00013697,2]
[354170668,1740327038433,-165.800975,0.00013697,2]
[354170670,1740327038443,-165.800975,0.00013697,2]
[354170672,1740327038455,-165.800975,0.00013697,2]
[354170674,1740327038465,-165.800975,0.00013697,2]
[354170676,1740327038474,-194.979244,0.00013697,2]
[354170678,1740327038483,-194.979244,0.00013697,2]
[354170680,1740327038493,-194.979244,0.00013697,2]
[354170682,1740327038504,-194.979244,0.00013697,2]
[354170683,1740327038513,-194.979244,0.00013697,2]
[354170684,1740327038522,-194.979244,0.00013697,2]
[354170685,1740327038531,-460.510294,0.00013697,2]
[354170686,1740327038543,-524.157355,0.00013697,2]
[354170687,1740327038552,-524.157355,0.00013697,2]
[354170688,1740327038561,-248.954067,0.00013697,2]
[354170689,1740327038570,-248.954067,0.00013697,2]
[354170690,1740327038580,-218.183882,0.00013697,2]
[354170691,1740327038589,-218.183882,0.00013697,2]
[354170692,1740327038599,-1649.859882,0.00013697,2]
[354170693,1740327038608,-151.0,0.00013697,2]
[354170694,1740327038618,-1649.859882,0.00013697,2]
[354170695,1740327038627,-151.0,0.00013697,2]
[354170696,1740327038637,-500.0,0.00013697,2]
[354170697,1740327038647,-182.11136404,0.00013697,2]
[354170698,1740327038657,-500.0,0.00013697,2]
[354170699,1740327038667,-500.0,0.00013697,2]
[354170700,1740327038680,-310.59570445,0.00013697,2]
[354170701,1740327038690,-166.412523,0.00013697,2]
[354170702,1740327038699,-166.412523,0.00013697,2]
[354170703,1740327038798,-61816.98195459,0.00013698,5]
[354170704,1740327038811,-23506.5885056,0.00013698,5]
[354170705,1740327038821,-17296.96331582,0.00013698,5]
[354170706,1740327038830,-151.0,0.00013698,2]
[354170707,1740327038840,-151.0,0.00013698,2]
[354170708,1740327038850,-151.0,0.00013698,2]
[354170709,1740327038859,-151.0,0.00013698,2]
[354170710,1740327038868,-151.0,0.00013698,2]
[354170711,1740327038877,-151.0,0.00013698,2]
[354170712,1740327038886,-151.0,0.00013698,2]
[354170713,1740327038895,-151.0,0.00013698,2]
[354170714,1740327038905,-151.0,0.00013698,2]
[354170715,1740327038915,-182.652981,0.00013698,2]
[354170716,1740327038924,-182.652981,0.00013698,2]
[354170717,1740327038933,-182.652981,0.00013698,2]
[354170718,1740327038943,-182.652985,0.00013698,2]
[354170719,1740327038952,-500.0,0.00013698,2]
[354170720,1740327038961,-602.66,0.00013698,2]
[354170721,1740327038971,-313.767714,0.00013698,2]
[354170722,1740327038980,-313.767714,0.00013698,2]
[354170723,1740327038989,-313.767714,0.00013698,2]
[354170724,1740327038999,-313.767714,0.00013698,2]
[354170725,1740327039009,-313.767714,0.00013698,2]
[354170726,1740327039018,-313.767714,0.00013698,2]
[354170727,1740327039027,-313.767714,0.00013698,2]
[354170728,1740327039036,-313.767714,0.00013698,2]
[354170729,1740327039046,-313.767714,0.00013698,2]
[354170730,1740327039056,-313.767714,0.00013698,2]
[354170731,1740327039065,-313.767714,0.00013698,2]
[354170732,1740327039074,-313.767714,0.00013698,2]
[354170733,1740327039084,-500.0,0.00013698,2]
[354170734,1740327039093,-500.0,0.00013698,2]
[354170735,1740327039103,-500.0,0.00013698,2]
[354170736,1740327039111,-151.0,0.00013698,2]
[354170737,1740327039120,-262.732592,0.00013698,2]
[354170738,1740327039130,-151.0,0.00013698,2]
[354170739,1740327039140,-151.0,0.00013698,2]
[354170740,1740327039149,-151.0,0.00013698,2]
[354170741,1740327039158,-151.0,0.00013698,2]
[354170742,1740327039168,-151.0,0.00013698,2]
[354170743,1740327039178,-151.0,0.00013698,2]
[354170744,1740327039187,-151.0,0.00013698,2]
[354170745,1740327039197,-175.720799,0.00013698,2]
[354170746,1740327039206,-503.38368055,0.00013698,2]
[354170747,1740327039216,-506.80818413,0.00013698,2]
[354170748,1740327039225,-502.82376903,0.00013698,2]
[354170749,1740327039234,-500.0,0.00013698,2]
[354170750,1740327039244,-500.0,0.00013698,2]
[354170751,1740327039254,-500.0,0.00013698,2]
[354170752,1740327039264,-500.0,0.00013698,2]
[354170753,1740327039273,-501.78048137,0.00013698,2]
[354170754,1740327039283,-500.0,0.00013698,2]
[354170755,1740327039293,-501.61316176,0.00013698,2]
[354170756,1740327039303,-500.0,0.00013698,2]
[354170757,1740327039313,-500.0,0.00013698,2]
[354170758,1740327039322,-500.0,0.00013698,2]
[354170759,1740327039331,-1000.0,0.00013698,2]
[354170760,1740327039340,-505.0681588,0.00013698,2]
[354170761,1740327039349,-486.95820269,0.00013698,2]
[354170762,1740327039359,-500.0,0.00013698,2]
[354170763,1740327039368,-151.0,0.00013698,2]
[354170764,1740327039378,-151.0,0.00013698,2]
[354170765,1740327039387,-151.0,0.00013698,2]
[354170766,1740327039396,-151.0,0.00013698,2]
[354170767,1740327039406,-151.0,0.00013698,2]
[354170768,1740327039415,-151.0,0.00013698,2]
[354170769,1740327039424,-151.0,0.00013698,2]
[354170770,1740327039433,-500.0,0.00013698,2]
[354170771,1740327039442,-151.0,0.00013698,2]
[354170772,1740327039451,-151.0,0.00013698,2]
[354170773,1740327039460,-151.0,0.00013698,2]
[354170774,1740327039470,-151.0,0.00013698,2]
[354170775,1740327039479,-151.0,0.00013698,2]
[354170776,1740327039488,-151.0,0.00013698,2]
[354170777,1740327039498,-151.0,0.00013698,2]
[354170778,1740327039507,-151.0,0.00013698,2]
[354170779,1740327039516,-151.0,0.00013698,2]
[354170780,1740327039525,-155.67158,0.00013698,2]
[354170781,1740327039534,-500.0,0.00013698,2]
[354170782,1740327039544,-500.0,0.00013698,2]
[354170783,1740327039553,-151.0,0.00013698,2]
[354170784,1740327039562,-151.0,0.00013698,2]
[354170785,1740327039571,-151.0,0.00013698,2]
[354170786,1740327039580,-151.0,0.00013698,2]
[354170787,1740327039590,-151.0,0.00013698,2]
[354170788,1740327039600,-151.0,0.00013698,2]
[354170789,1740327039609,-501.98726523,0.00013698,2]
[354170790,1740327039619,-473.48229253,0.00013698,2]
[354170791,1740327039628,-151.0,0.00013698,2]
[354170792,1740327039639,-500.0,0.00013698,2]
[354170793,1740327039648,-500.0,0.00013698,2]
[354170794,1740327039658,-500.0,0.00013698,2]
[354170795,1740327039669,-500.0,0.00013698,2]
[354170796,1740327039680,-500.0,0.00013698,2]
[354170797,1740327039689,-193.97273763,0.00013698,2]
[354170798,1740327039699,-500.0,0.00013698,2]
[354170799,1740327039708,-500.0,0.00013698,2]
[354170800,1740327039718,-500.0,0.00013698,2]
[354170801,1740327039728,-505.32403093,0.00013698,2]
[354170802,1740327039738,-500.0,0.00013698,2]
[354170803,1740327039749,-501.12222512,0.00013698,2]
[354170804,1740327039759,-501.84472196,0.00013698,2]
[354170805,1740327039769,-500.0,0.00013698,2]
[354170806,1740327039778,-500.0,0.00013698,2]
[354170807,1740327039787,-502.71292363,0.00013698,2]
[354170808,1740327039796,-500.0,0.00013698,2]
[354170809,1740327039806,-384.90343063,0.00013698,2]
[354170810,1740327039815,-500.0,0.00013698,2]
[354170811,1740327039824,-500.0,0.00013698,2]
[354170812,1740327039833,-500.0,0.00013698,2]
[354170813,1740327039843,-505.77012204,0.00013698,2]
[354170814,1740327039852,-506.70376173,0.00013698,2]
[354170815,1740327039861,-500.0,0.00013698,2]
[354170816,1740327039870,-502.00509298,0.00013698,2]
[354170817,1740327039879,-503.34954033,0.00013698,2]
[354170818,1740327039888,-501.57661556,0.00013698,2]
[354170819,1740327039898,-501.35433545,0.00013698,2]
[354170820,1740327039907,-502.41660396,0.00013698,2]
[354170821,1740327039916,-502.95732577,0.00013698,2]
[354170822,1740327039925,-501.54370907,0.00013698,2]
[354170823,1740327039934,-503.65786046,0.00013698,2]
[354170824,1740327039943,-500.0,0.00013698,2]
[354170825,1740327039952,-502.91679464,0.00013698,2]
[354170826,1740327039962,-500.0,0.00013698,2]
[354170827,1740327039971,-500.0,0.00013698,2]
[354170828,1740327039980,-500.0,0.00013698,2]
[354170829,1740327039989,-590.52860551,0.00013698,2]
[354170830,1740327040000,-500.0,0.00013698,2]
[354170831,1740327040009,-503.50854788,0.00013698,2]
[354170832,1740327040019,-501.30356303,0.00013698,2]
[354170833,1740327040029,-500.0,0.00013698,2]
[354170834,1740327040038,-501.67713509,0.00013698,2]
[354170835,1740327040047,-505.59355525,0.00013698,2]
[354170836,1740327040056,-505.03000093,0.00013698,2]
[354170837,1740327040065,-500.0,0.00013698,2]
[354170838,1740327040074,-500.0,0.00013698,2]
[354170839,1740327040084,-500.0,0.00013698,2]
[354170840,1740327040093,-500.0,0.00013698,2]
[354170841,1740327040103,-500.0,0.00013698,2]
[354170842,1740327040113,-500.0,0.00013698,2]
[354170843,1740327040122,-500.0,0.00013698,2]
[354170844,1740327040132,-574.17450534,0.00013698,2]
[354170845,1740327040142,-500.0,0.00013698,2]
[354170846,1740327040152,-178.88057895,0.00013698,2]
[354170847,1740327040161,-185.742524,0.00013698,2]
[354170848,1740327040170,-185.742524,0.00013698,2]
[354170849,1740327040179,-500.64292556,0.00013698,2]
[354170850,1740327040189,-185.742524,0.00013698,2]
[354170851,1740327040199,-185.742524,0.00013698,2]
[354170852,1740327040209,-500.0,0.00013698,2]
[354170853,1740327040219,-185.742524,0.00013698,2]
[354170855,1740327040228,-185.742524,0.00013698,2]
[354170857,1740327040238,-185.742524,0.00013698,2]
[354170859,1740327040247,-500.0,0.00013698,2]
[354170860,1740327040256,-185.742524,0.00013698,2]
[354170862,1740327040265,-185.742524,0.00013698,2]
[354170863,1740327040274,-185.742524,0.00013698,2]
[354170865,1740327040284,-185.742524,0.00013698,2]
[354170866,1740327040295,-501.17903029,0.00013698,2]
[354170867,1740327040305,-185.742524,0.00013698,2]
[354170868,1740327040316,-185.742524,0.00013698,2]
[354170869,1740327040325,-500.0,0.00013698,2]
[354170871,1740327040335,-185.742529,0.00013698,2]
[354170872,1740327040345,-500.0,0.00013698,2]
[354170874,1740327040355,-327.10452472,0.00013698,2]
[354170876,1740327040364,-500.0,0.00013698,2]
[354170878,1740327040374,-500.0,0.00013698,2]
[354170880,1740327040383,-500.0,0.00013698,2]
[354170882,1740327040393,-502.70679316,0.00013698,2]
[354170883,1740327040403,-500.0,0.00013698,2]
[354170884,1740327040412,-500.0,0.00013698,2]
[354170885,1740327040422,-502.14304556,0.00013698,2]
[354170886,1740327040432,-501.71435053,0.00013698,2]
[354170887,1740327040443,-373.76908019,0.00013698,2]
[354170888,1740327040454,-501.30569182,0.00013698,2]
[354170889,1740327040464,-502.55766145,0.00013698,2]
[354170890,1740327040474,-502.51485107,0.00013698,2]
[354170891,1740327040487,-500.0,0.00013698,2]
[354170892,1740327040498,-163.08828056,0.00013698,2]
[354170894,1740327040508,-500.0,0.00013698,2]
[354170901,1740327040588,-500.0,0.00013698,2]
[354170903,1740327040598,-500.0,0.00013698,2]
[354170904,1740327040608,-500.0,0.00013698,2]
[354170905,1740327040617,-617.97580265,0.00013698,2]
[354170906,1740327040627,-500.0,0.00013698,2]
[354170907,1740327040636,-501.96639345,0.00013698,2]
[354170908,1740327040646,-500.59074097,0.00013698,2]
[354170909,1740327040655,-499.39444897,0.00013698,2]
[354170911,1740327040666,-165.800975,0.00013698,2]
[354170913,1740327040678,-165.800975,0.00013698,2]
[354170915,1740327040687,-500.0,0.00013698,2]
[354170917,1740327040697,-165.800975,0.00013698,2]
[354170919,1740327040707,-501.25241644,0.00013698,2]
[354170921,1740327040718,-165.800975,0.00013698,2]
[354170922,1740327040728,-500.0,0.00013698,2]
[354170923,1740327040737,-165.800975,0.00013698,2]
[354170924,1740327040748,-501.47323968,0.00013698,2]
[354170926,1740327040757,-165.800975,0.00013698,2]
[354170928,1740327040766,-500.0,0.00013698,2]
[354170930,1740327040775,-500.0,0.00013698,2]
[354170932,1740327040784,-506.56423361,0.00013698,2]
[354170934,1740327040793,-165.800975,0.00013698,2]
[354170936,1740327040805,-165.800975,0.00013698,2]
[354170938,1740327040814,-165.800975,0.00013698,2]
[354170940,1740327040823,-165.800975,0.00013698,2]
[354170942,1740327040833,-165.800975,0.00013698,2]
[354170944,1740327040842,-500.0,0.00013698,2]
[354170946,1740327040851,-504.50925271,0.00013698,2]
[354170947,1740327040861,-165.800977,0.00013698,2]
[354170948,1740327040869,-505.02951971,0.00013698,2]
[354170949,1740327040878,-503.21657419,0.00013698,2]
[354170950,1740327040887,-500.0,0.00013698,2]
[354170951,1740327040897,-500.0,0.00013698,2]
[354170952,1740327040906,-577.82556233,0.00013698,2]
[354170953,1740327040915,-500.0,0.00013698,2]
[354170954,1740327040923,-584.92013935,0.00013698,2]
[354170955,1740327040932,-503.30599478,0.00013698,2]
[354170956,1740327040942,-503.33067557,0.00013698,2]
[354170957,1740327040951,-500.0,0.00013698,2]
[354170958,1740327040960,-615.21161205,0.00013698,2]
[354170960,1740327040969,-500.0,0.00013698,2]
[354170962,1740327040978,-503.18391678,0.00013698,2]
[354170964,1740327040987,-319.69825864,0.00013698,2]
[354170966,1740327040997,-500.0,0.00013698,2]
[354170968,1740327041007,-502.80235147,0.00013698,2]
[354170970,1740327041016,-500.0,0.00013698,2]
[354170972,1740327041025,-624.29720727,0.00013698,2]
[354170974,1740327041034,-500.0,0.00013698,2]
[354170976,1740327041044,-500.97183277,0.00013698,2]
[354170978,1740327041053,-503.55118918,0.00013698,2]
[354170980,1740327041062,-500.0,0.00013698,2]
[354170982,1740327041071,-501.38393187,0.00013698,2]
[354170984,1740327041080,-500.0,0.00013698,2]
[354170986,1740327041089,-504.8119173,0.00013698,2]
[354170988,1740327041098,-500.0,0.00013698,2]
[354170990,1740327041107,-194.979244,0.00013698,2]
[354170992,1740327041116,-500.0,0.00013698,2]
[354170994,1740327041126,-500.0,0.00013698,2]
[354170996,1740327041135,-194.979244,0.00013698,2]
[354170998,1740327041144,-502.70442611,0.00013698,2]
[354171000,1740327041153,-500.0,0.00013698,2]
[354171002,1740327041163,-194.979244,0.00013698,2]
[354171004,1740327041172,-500.0,0.00013698,2]
[354171006,1740327041181,-194.979244,0.00013698,2]
[354171008,1740327041190,-500.0,0.00013698,2]
[354171010,1740327041199,-500.0,0.00013698,2]
[354171012,1740327041209,-194.979244,0.00013698,2]
[354171014,1740327041218,-500.0,0.00013698,2]
[354171016,1740327041227,-194.979244,0.00013698,2]
[354171018,1740327041236,-500.0,0.00013698,2]
[354171020,1740327041245,-500.0,0.00013698,2]
[354171022,1740327041254,-439.00287296,0.00013698,2]
[354171023,1740327041263,-502.35224453,0.00013698,2]
[354171026,1740327041273,-237.59710482,0.00013698,2]
[354171028,1740327041282,-362.97934682,0.00013698,2]